bitfinex-derivatives/quotes_BTCF0:USTF0_20250608
["timestamp","ask_amount","ask_price","bid_price","bid_amount"]
[1749406534711,0.24828656,106220.0,106210.0,2.24141974]
[1749406535610,0.24828656,106220.0,106210.0,1.88061974]
[1749406535811,0.24828656,106220.0,106210.0,2.24141974]
[1749406539612,0.06010676,106220.0,106210.0,2.24141974]
[1749406539809,0.68170176,106240.0,106220.0,0.2822628]
[1749406540010,0.2890021,106230.0,106220.0,1.25899566]
[1749406540206,0.2890021,106230.0,106220.0,1.69119566]
[1749406540406,0.7892021,106230.0,106220.0,1.78534432]
[1749406541108,0.7892021,106230.0,106220.0,2.26203078]
[1749406541307,0.7892021,106230.0,106220.0,1.96802778]
[1749406541614,0.7892021,106230.0,106220.0,2.35026614]
[1749406541811,0.7922021,106230.0,106220.0,2.64416815]
[1749406542016,0.7952021,106230.0,106220.0,2.64416815]
[1749406542616,0.7952021,106230.0,106220.0,2.29957979]
[1749406542912,0.7952021,106230.0,106220.0,2.00267979]
[1749406543714,0.7952021,106230.0,106220.0,2.03095979]
[1749406544817,0.506,106230.0,106220.0,2.03095979]
[1749406545209,0.5062,106230.0,106220.0,2.03095979]
[1749406545817,0.0062,106230.0,106220.0,2.03095979]
[1749406546520,0.006,106230.0,106220.0,2.03095979]
[1749406547020,0.10084,106240.0,106230.0,0.1881621]
[1749406547218,0.60084,106240.0,106230.0,0.75994856]
[1749406547416,0.60084,106240.0,106230.0,1.11885057]
[1749406547617,0.60084,106240.0,106230.0,1.2129815]
[1749406550228,0.7889844,106240.0,106230.0,1.2129815]
[1749406551123,0.7889844,106240.0,106230.0,1.03319504]
[1749406551324,0.96877086,106240.0,106230.0,1.2129815]
[1749406553014,0.96877086,106240.0,106230.0,1.5098815]
[1749406555315,0.7889844,106240.0,106230.0,1.5098815]
[1749406555516,0.96877086,106240.0,106230.0,1.5098815]
[1749406556321,0.2889844,106240.0,106230.0,1.5098815]
[1749406558219,0.2889844,106240.0,106230.0,1.1490815]
[1749406558522,0.2889844,106240.0,106230.0,1.5098815]
[1749406559223,0.7889844,106240.0,106230.0,1.33009504]
[1749406559426,0.7889844,106240.0,106230.0,1.5098815]
[1749406560626,0.7889844,106240.0,106230.0,1.5475315]
[1749406560928,0.5,106240.0,106230.0,1.5475315]
[1749406561526,0.5002,106240.0,106230.0,1.5475315]
[1749406561929,0.0002,106240.0,106230.0,1.5475315]
[1749406562128,0.5002,106240.0,106230.0,1.5475315]
[1749406562825,0.0002,106240.0,106230.0,1.72731796]
[1749406563022,0.10084,106250.0,106240.0,0.2822096]
[1749406563223,0.60084,106250.0,106240.0,1.87227792]
[1749406563423,0.60084,106250.0,106240.0,2.16617993]
[1749406563629,0.60104,106250.0,106240.0,2.26031086]
[1749406563831,0.5002,106250.0,106240.0,2.26991177]
[1749406564032,0.10084,106260.0,106250.0,0.1881267]
[1749406564236,0.60084,106260.0,106250.0,0.46401316]
[1749406564428,0.788949,106260.0,106250.0,0.46401316]
[1749406564625,0.60104,106260.0,106250.0,0.55813523]
[1749406564820,0.5002,106260.0,106250.0,0.85203724]
[1749406565329,0.688109,106260.0,106250.0,0.85203724]
[1749406565624,0.5002,106260.0,106250.0,0.85203724]
[1749406565820,0.5042,106260.0,106250.0,1.21283724]
[1749406566226,0.5042,106260.0,106250.0,1.24110724]
[1749406566426,0.692109,106260.0,106250.0,1.24110724]
[1749406566735,0.692309,106260.0,106250.0,1.24110724]
[1749406567132,0.692309,106260.0,106250.0,1.67290724]
[1749406567735,0.692309,106260.0,106250.0,1.96980724]
[1749406568038,0.692309,106260.0,106250.0,1.35822078]
[1749406568234,0.692309,106260.0,106250.0,1.96980724]
[1749406568432,0.692309,106260.0,106250.0,1.67590523]
[1749406569128,0.692309,106260.0,106250.0,1.96980724]
[1749406570637,0.5042,106260.0,106250.0,1.96980724]
[1749406570834,0.692309,106260.0,106250.0,1.96980724]
[1749406571034,0.692309,106260.0,106250.0,1.53800724]
[1749406571233,0.87209546,106260.0,106250.0,1.97004724]
[1749406571433,0.96809546,106260.0,106250.0,1.93694724]
[1749406572337,0.96809546,106260.0,106250.0,1.93734724]
[1749406572535,0.96809546,106260.0,106250.0,1.84864374]
[1749406573838,0.96809546,106260.0,106250.0,1.84852374]
[1749406574338,0.96809546,106260.0,106250.0,1.84856374]
[1749406576941,0.96809546,106260.0,106250.0,1.48776374]
[1749406577133,0.96809546,106260.0,106250.0,1.84856374]
[1749406579343,0.97214424,106260.0,106250.0,1.84856374]
[1749406579843,0.97214424,106260.0,106250.0,1.84820374]
[1749406580642,0.97214424,106260.0,106250.0,1.64300523]
[1749406580836,0.97214424,106260.0,106250.0,1.64288523]
[1749406581742,0.97214424,106260.0,106250.0,1.93678724]
[1749406581938,0.97214424,106260.0,106250.0,1.50490724]
[1749406582142,0.97214424,106260.0,106250.0,1.90490724]
[1749406582346,0.97214424,106260.0,106250.0,1.94254724]
[1749406584642,0.97214424,106260.0,106250.0,1.97414724]
[1749406585442,0.79235778,106260.0,106250.0,1.97414724]
[1749406585643,0.97214424,106260.0,106250.0,1.67724724]
[1749406588148,0.97214424,106260.0,106250.0,1.49746078]
[1749406588350,0.97214424,106260.0,106250.0,1.67724724]
[1749406589650,0.97214424,106260.0,106250.0,1.67688724]
[1749406591353,0.97214424,106260.0,106250.0,1.24544724]
[1749406591546,0.97214424,106260.0,106250.0,1.97366724]
[1749406591851,0.97214424,106260.0,106250.0,1.54234724]
[1749406592051,0.97214424,106260.0,106250.0,1.97362724]
[1749406593445,0.97214424,106260.0,106250.0,1.67972523]
[1749406593648,0.97214424,106260.0,106250.0,1.49993877]
[1749406593848,0.97214424,106260.0,106250.0,1.67972523]
[1749406596758,0.97214424,106260.0,106250.0,1.71042523]
[1749406597451,0.97214424,106260.0,106250.0,1.41352523]
[1749406597846,0.90834424,106260.0,106250.0,1.41352523]
[1749406599861,0.40834424,106260.0,106250.0,1.41352523]
[1749406600160,0.90834424,106260.0,106250.0,1.41352523]
[1749406600656,0.87614424,106260.0,106250.0,1.41352523]
[1749406601259,0.37614424,106260.0,106250.0,1.41352523]
[1749406601561,0.87614424,106260.0,106250.0,1.41352523]
[1749406601857,0.87414424,106260.0,106250.0,0.98424523]
[1749406602057,0.87414424,106260.0,106250.0,1.41524523]
[1749406602851,0.87214424,106260.0,106250.0,1.41724523]
[1749406603157,1.0519307,106260.0,106250.0,1.10037733]
[1749406603459,1.0519307,106260.0,106250.0,1.53129733]
[1749406603759,1.0839307,106260.0,106250.0,1.71108379]
[1749406603959,0.90414424,106260.0,106250.0,1.71108379]
[1749406604360,0.90414424,106260.0,106250.0,1.70908379]
[1749406604559,0.90414424,106260.0,106250.0,1.71008379]
[1749406604852,0.90414424,106260.0,106250.0,1.70808379]
[1749406605060,0.90414424,106260.0,106250.0,1.70908379]
[1749406605251,0.90414424,106260.0,106250.0,1.34828379]
[1749406605451,0.90414424,106260.0,106250.0,1.70908379]
[1749406606158,1.0839307,106260.0,106250.0,1.70908379]
[1749406607360,1.0839307,106260.0,106250.0,1.41516513]
[1749406608056,1.0839307,106260.0,106250.0,1.70908211]
[1749406610060,1.0839307,106260.0,106250.0,1.41516513]
[1749406610365,1.0839307,106260.0,106250.0,1.70908222]
[1749406610558,0.90414424,106260.0,106250.0,1.70908222]
[1749406611466,0.90414424,106260.0,106250.0,1.27816222]
[1749406611654,0.90414424,106260.0,106250.0,1.70892222]
[1749406615970,0.87214424,106260.0,106250.0,1.70892222]
[1749406616568,0.87214424,106260.0,106250.0,1.34812222]
[1749406616767,0.87214424,106260.0,106250.0,1.70892222]
[1749406616968,0.87214424,106260.0,106250.0,1.73036058]
[1749406617267,0.87214424,106260.0,106250.0,2.09116058]
[1749406617466,0.87214424,106260.0,106250.0,1.79724349]
[1749406617671,0.87214424,106260.0,106250.0,1.43644349]
[1749406617876,0.87214424,106260.0,106250.0,1.79724349]
[1749406619273,0.37214424,106260.0,106250.0,1.79724349]
[1749406619472,0.87214424,106260.0,106250.0,1.79724349]
[1749406619781,0.87214424,106260.0,106250.0,1.43644349]
[1749406619976,0.87214424,106260.0,106250.0,1.79724349]
[1749406620478,0.87214424,106260.0,106250.0,2.09116731]
[1749406620878,0.87214424,106260.0,106250.0,1.73036731]
[1749406621067,0.87214424,106260.0,106250.0,2.09116731]
[1749406621273,0.87214424,106260.0,106250.0,1.70892895]
[1749406622279,0.87214424,106260.0,106250.0,1.52914249]
[1749406622481,1.0519307,106260.0,106250.0,1.70892895]
[1749406623382,1.0519307,106260.0,106250.0,1.27816895]
[1749406623584,1.0519307,106260.0,106250.0,1.52910249]
[1749406623782,1.0519307,106260.0,106250.0,1.70888895]
[1749406625581,1.0519307,106260.0,106250.0,1.34808895]
[1749406626982,1.0519307,106260.0,106250.0,1.05416513]
[1749406627380,0.9913706,106260.0,106250.0,1.05416513]
[1749406627781,0.9913706,106260.0,106250.0,1.34808177]
[1749406633393,0.9913706,106260.0,106250.0,1.16829531]
[1749406633986,0.9913706,106260.0,106250.0,1.34808177]
[1749406634384,0.9913706,106260.0,106250.0,1.16829531]
[1749406635485,0.9913706,106260.0,106250.0,0.73757531]
[1749406635691,1.53195706,106260.0,106250.0,0.36182664]
[1749406635880,1.62735706,106260.0,106250.0,0.36182664]
[1749406636285,1.62735706,106260.0,106250.0,0.06791]
[1749406636584,1.62735706,106260.0,106250.0,0.27363667]
[1749406636785,2.05811706,106260.0,106250.0,0.27363667]
[1749406636983,2.05811706,106260.0,106250.0,0.27263667]
[1749406637183,2.06011706,106260.0,106250.0,0.27263667]
[1749406637387,2.33401552,106260.0,106250.0,0.23018077]
[1749406637585,2.33401552,106260.0,106240.0,0.59095824]
[1749406637586,0.1881266,106250.0,106240.0,0.2970416]
[1749406637891,1.00579952,106250.0,106240.0,0.2970416]
[1749406638186,1.50579952,106250.0,106240.0,0.2970416]
[1749406638493,1.51517872,106250.0,106240.0,0.2970416]
[1749406638890,1.1462266,106250.0,106240.0,0.0001416]
[1749406639090,1.32601306,106250.0,106240.0,0.0001416]
[1749406641195,1.33567682,106250.0,106240.0,0.0001416]
[1749406641588,0.97487682,106250.0,106240.0,0.0001416]
[1749406641998,1.69647682,106250.0,106240.0,0.0001416]
[1749406642586,1.68681306,106250.0,106240.0,0.0001416]
[1749406643795,1.86659952,106250.0,106240.0,0.0001416]
[1749406644089,1.36659952,106250.0,106240.0,0.0001416]
[1749406644294,1.86659952,106250.0,106240.0,0.0001416]
[1749406644497,2.39871952,106250.0,106240.0,0.0001416]
[1749406645189,1.67711952,106250.0,106240.0,0.0001416]
[1749406645389,2.40804352,106250.0,106240.0,0.0001416]
[1749406645794,2.40800352,106250.0,106240.0,0.0001416]
[1749406651202,1.68640352,106250.0,106240.0,0.0001416]
[1749406651396,2.22821706,106250.0,106240.0,0.0001416]
[1749406653600,1.69613706,106250.0,106240.0,0.0001416]
[1749406653804,2.22793706,106250.0,106240.0,0.0001416]
[1749406655601,2.23198584,106250.0,106240.0,0.0001416]
[1749406661104,1.73198584,106250.0,106240.0,0.0001416]
[1749406661607,1.20018584,106250.0,106240.0,0.0001416]
[1749406661805,1.73146584,106250.0,106240.0,0.0001416]
[1749406664208,2.23146584,106250.0,106240.0,0.0001416]
[1749406664906,2.23146584,106250.0,106240.0,0.0325416]
[1749406668107,1.73146584,106250.0,106240.0,0.0325416]
[1749406671014,1.00986584,106250.0,106240.0,0.0325416]
[1749406671205,2.23146584,106250.0,106240.0,0.0325416]
[1749406673414,1.52039938,106250.0,106240.0,0.23775512]
[1749406673609,2.23130584,106250.0,106240.0,0.26905512]
[1749406674312,1.60288584,106250.0,106240.0,0.26905512]
[1749406674513,2.13400584,106250.0,106240.0,0.30135512]
[1749406674702,1.59356184,106250.0,106240.0,0.30135512]
[1749406674910,1.69384184,106250.0,106240.0,0.30135512]
[1749406675405,1.41377538,106250.0,106240.0,0.48949952]
[1749406675611,1.33304184,106250.0,106240.0,0.66928598]
[1749406675806,0.65325538,106250.0,106240.0,1.37403451]
[1749406676202,0.83324184,106250.0,106240.0,1.19424805]
[1749406676412,0.47224184,106250.0,106240.0,1.19424805]
[1749406676715,0.47244184,106250.0,106240.0,1.19524805]
[1749406676912,0.47244184,106250.0,106240.0,0.99103453]
[1749406679920,0.47244184,106250.0,106240.0,1.1965924]
[1749406682607,0.47244184,106250.0,106240.0,0.99103453]
[1749406683418,0.47244184,106250.0,106240.0,1.19651629]
[1749406683620,0.47244184,106250.0,106240.0,0.99103453]
[1749406684918,0.47244184,106250.0,106240.0,1.35183453]
[1749406685407,0.29265538,106250.0,106240.0,1.53162099]
[1749406685611,0.29265538,106250.0,106240.0,1.35183453]
[1749406686220,0.47244184,106250.0,106240.0,1.35183453]
[1749406687412,0.37216184,106250.0,106240.0,1.55722364]
[1749406687613,0.29261538,106250.0,106240.0,1.53162099]
[1749406687816,0.47220184,106250.0,106240.0,0.92099453]
[1749406688015,0.47220184,106250.0,106240.0,1.35179453]
[1749406688213,0.47240184,106250.0,106240.0,1.64571117]
[1749406689028,0.47240184,106250.0,106240.0,1.35179453]
[1749406690820,0.47240184,106250.0,106240.0,0.99099453]
[1749406691022,0.47240184,106250.0,106240.0,1.35179453]
[1749406692221,0.47240184,106250.0,106240.0,1.64869453]
[1749406695323,0.47240184,106250.0,106240.0,1.82848099]
[1749406696726,0.47240184,106250.0,106240.0,1.46768099]
[1749406696922,0.47240184,106250.0,106240.0,1.82848099]
[1749406699117,0.37216184,106250.0,106240.0,1.82848099]
[1749406699319,0.47232184,106250.0,106240.0,1.82848099]
[1749406699524,0.29253538,106250.0,106240.0,1.82848099]
[1749406699924,0.29233538,106250.0,106240.0,1.82848099]
[1749406700127,0.29253538,106250.0,106240.0,1.82848099]
[1749406700322,0.29253538,106250.0,106240.0,2.12239763]
[1749406701522,0.47232184,106250.0,106240.0,2.12239763]
[1749406710631,0.47232184,106250.0,106240.0,2.12231763]
[1749406711333,0.47232184,106250.0,106240.0,1.94253117]
[1749406711539,0.47232184,106250.0,106240.0,2.12231763]
[1749406716937,0.47232184,106250.0,106240.0,2.15058763]
[1749406718437,0.47232184,106250.0,106240.0,1.85667099]
[1749406719135,0.29253538,106250.0,106240.0,2.15052891]
[1749406719334,0.86977296,106270.0,106260.0,0.1881089]
[1749406719644,1.56423296,106270.0,106260.0,1.00424033]
[1749406720139,1.58336663,106270.0,106260.0,1.00424033]
[1749406720333,1.58356663,106270.0,106260.0,1.09834469]
[1749406720639,1.58736663,106270.0,106260.0,1.09834469]
[1749406720837,1.58756663,106270.0,106260.0,1.09834469]
[1749406721042,1.58756663,106270.0,106260.0,1.17431725]
[1749406722039,1.58756663,106270.0,106260.0,1.17427725]
[1749406722342,1.58756663,106270.0,106260.0,0.99449079]
[1749406723641,1.48740663,106270.0,106260.0,0.99449079]
[1749406723833,1.58756663,106270.0,106260.0,0.99449079]
[1749406724940,1.58752663,106270.0,106260.0,0.99449079]
[1749406725140,1.58752663,106270.0,106260.0,1.03213079]
[1749406726034,1.58752663,106270.0,106260.0,0.82646582]
[1749406726237,1.58752663,106270.0,106260.0,0.20771692]
[1749406726544,2.12811309,106270.0,106260.0,0.54425256]
[1749406728239,2.12811309,106270.0,106260.0,0.11361256]
[1749406729436,2.12811309,106270.0,106260.0,0.26040016]
[1749406729741,2.13216187,106270.0,106260.0,0.31927753]
[1749406734640,1.95237541,106270.0,106260.0,0.31927753]
[1749406735239,1.77258895,106270.0,106260.0,0.31927753]
[1749406735444,1.95237541,106270.0,106260.0,0.31927753]
[1749406736944,2.13216187,106270.0,106260.0,0.31927753]
[1749406738544,2.13216187,106270.0,106260.0,0.34754753]
[1749406739645,2.13016187,106270.0,106260.0,0.34754753]
[1749406740042,2.12816187,106270.0,106260.0,0.34754753]
[1749406740446,1.94837541,106270.0,106260.0,0.34754753]
[1749406745955,1.94837541,106270.0,106260.0,0.49440315]
[1749406746152,1.94837541,106270.0,106260.0,0.28873818]
[1749406748154,1.58757541,106270.0,106260.0,0.28873818]
[1749406751143,1.76736187,106270.0,106260.0,1e-08]
[1749406751449,0.1881089,106260.0,106250.0,0.20566497]
[1749406751653,1.43520182,106260.0,106250.0,0.20566497]
[1749406751849,0.1881266,106250.0,106240.0,0.69732657]
[1749406752051,0.84816403,106250.0,106240.0,0.69732657]
[1749406752355,1.34816403,106250.0,106240.0,0.69732657]
[1749406752550,1.38066403,106250.0,106240.0,0.26680657]
[1749406752954,1.38066403,106250.0,106240.0,0.0611416]
[1749406753855,1.38066403,106250.0,106240.0,0.0931416]
[1749406754051,1.34816403,106250.0,106240.0,0.0931416]
[1749406754257,1.34816403,106250.0,106240.0,0.0951416]
[1749406754567,1.34816403,106250.0,106240.0,0.0971416]
[1749406757460,1.34816403,106250.0,106240.0,0.30280657]
[1749406759465,1.34816403,106250.0,106240.0,0.0971416]
[1749406761166,1.35221281,106250.0,106240.0,0.0971416]
[1749406761866,1.35221281,106250.0,106240.0,0.30280657]
[1749406767666,1.41731281,106250.0,106240.0,0.30280657]
[1749406767863,1.41731281,106250.0,106240.0,0.0971416]
[1749406772972,1.25209281,106250.0,106240.0,0.0971416]
[1749406773173,1.35217281,106250.0,106240.0,0.0971416]
[1749406775373,0.31178635,106250.0,106240.0,0.64485982]
[1749406775561,0.49157281,106250.0,106240.0,0.73898189]
[1749406775766,0.49157281,106250.0,106240.0,0.55919543]
[1749406775967,0.39129281,106250.0,106240.0,0.55919543]
[1749406776164,0.21150635,106250.0,106240.0,1.09978189]
[1749406776473,0.31158635,106250.0,106240.0,1.09978189]
[1749406776674,0.31178635,106250.0,106240.0,1.09978189]
[1749406777979,0.31178635,106250.0,106240.0,1.39363981]
[1749406778569,0.49157281,106250.0,106240.0,1.39363981]
[1749406779773,0.31178635,106250.0,106240.0,1.39363981]
[1749406779987,0.31158635,106250.0,106240.0,1.39363981]
[1749406780178,0.31178635,106250.0,106240.0,1.09978189]
[1749406780377,0.31158635,106250.0,106240.0,1.09978189]
[1749406780580,0.31178635,106250.0,106240.0,1.09978189]
[1749406780774,0.31178635,106250.0,106240.0,1.69053981]
[1749406781478,0.30773757,106250.0,106240.0,1.69053981]
[1749406781774,0.20765757,106250.0,106240.0,1.69053981]
[1749406781977,0.11961097,106250.0,106240.0,1.78465981]
[1749406782275,0.30773857,106250.0,106240.0,1.78465981]
[1749406782481,0.30753857,106250.0,106240.0,1.78465981]
[1749406782679,0.20765857,106250.0,106240.0,1.78465981]
[1749406782980,0.20745857,106250.0,106240.0,1.78465981]
[1749406783283,0.20745857,106250.0,106240.0,2.14545981]
[1749406783778,0.20765857,106250.0,106240.0,2.05133981]
[1749406784481,0.21170735,106250.0,106240.0,2.05133981]
[1749406784873,0.02357975,106250.0,106240.0,2.05133981]
[1749406785181,0.21170735,106250.0,106240.0,2.05133981]
[1749406786679,0.21170735,106250.0,106240.0,1.32973981]
[1749406786879,0.21170735,106250.0,106240.0,2.05133981]
[1749406787081,0.02357975,106250.0,106240.0,2.05133981]
[1749406788183,0.21170725,106250.0,106240.0,2.05133981]
[1749406789286,0.02357975,106250.0,106240.0,2.05133981]
[1749406790773,0.21170735,106250.0,106240.0,2.05133981]
[1749406791886,0.21170735,106250.0,106240.0,1.75748189]
[1749406792187,0.21170735,106250.0,106240.0,2.05069947]
[1749406795791,0.21170735,106250.0,106240.0,1.32909947]
[1749406795994,0.21170735,106250.0,106240.0,2.05069947]
[1749406797587,0.02357975,106250.0,106240.0,2.05069947]
[1749406797892,0.21170735,106250.0,106240.0,1.75748189]
[1749406801197,0.21170735,106250.0,106240.0,2.13972025]
[1749406802194,0.02357975,106250.0,106240.0,2.13972025]
[1749406803996,0.21170735,106250.0,106240.0,2.13972025]
[1749406804191,0.02357975,106250.0,106240.0,2.13972025]
[1749406807593,0.95385665,106270.0,106260.0,0.1881099]
[1749406807594,0.1316,106270.0,106260.0,0.1881099]
[1749406807794,0.2880922,106270.0,106260.0,1.33876282]
[1749406807994,0.2880922,106270.0,106260.0,1.43366282]
[1749406808298,0.2882922,106270.0,106260.0,1.82136817]
[1749406808499,0.2880922,106270.0,106260.0,1.82136817]
[1749406809192,0.2882922,106270.0,106260.0,1.82136817]
[1749406809390,0.2880922,106270.0,106260.0,1.82136817]
[1749406809591,0.2882922,106270.0,106260.0,1.82136817]
[1749406809791,0.2882922,106270.0,106260.0,1.82236817]
[1749406809992,0.1882922,106270.0,106260.0,1.82236817]
[1749406810298,0.2882922,106270.0,106260.0,1.82236817]
[1749406810498,0.2880922,106270.0,106260.0,1.82236817]
[1749406810696,0.0002,106270.0,106260.0,1.82236817]
[1749406810996,0.1,106270.0,106260.0,1.82336817]
[1749406811192,0.1002,106270.0,106260.0,1.52978489]
[1749406811498,0.1002,106270.0,106260.0,1.82313838]
[1749406812100,0.1002,106270.0,106260.0,1.89895974]
[1749406812702,0.1002,106270.0,106260.0,1.60560625]
[1749406813300,0.1002,106270.0,106260.0,1.90250625]
[1749406814201,0.0002,106270.0,106260.0,1.90250625]
[1749406814402,0.0002,106270.0,106260.0,2.19569721]
[1749406814602,0.1882922,106270.0,106260.0,2.19569721]
[1749406815603,0.0002,106270.0,106260.0,2.19569721]
[1749406816610,0.0002,106270.0,106260.0,2.55649721]
[1749406817304,0.0002,106270.0,106260.0,2.26330625]
[1749406818008,0.0002,106270.0,106260.0,2.64554461]
[1749406819606,0.0002,106270.0,106260.0,2.93853314]
[1749406819806,0.1882922,106270.0,106260.0,2.93853314]
[1749406820101,0.19234098,106270.0,106260.0,2.37650832]
[1749406820505,0.00424878,106270.0,106260.0,2.55629478]
[1749406822708,1e-08,106270.0,106260.0,2.83018524]
[1749406823210,0.56175526,106290.0,106280.0,0.1880745]
[1749406823411,0.46772426,106290.0,106280.0,1.3637848]
[1749406823608,0.46772426,106290.0,106280.0,1.4275848]
[1749406823812,0.46772426,106290.0,106280.0,1.52168916]
[1749406824001,0.46792426,106290.0,106280.0,1.53116624]
[1749406824513,0.46992426,106290.0,106280.0,1.53116624]
[1749406824713,0.47192426,106290.0,106280.0,1.53116624]
[1749406826615,0.50342426,106290.0,106280.0,1.53116624]
[1749406828004,0.50342426,106290.0,106280.0,1.3261624]
[1749406828617,0.50342426,106290.0,106280.0,1.3529124]
[1749406831526,0.53422426,106290.0,106280.0,1.3529124]
[1749406831916,0.3544378,106290.0,106280.0,1.3529124]
[1749406833216,0.53422426,106290.0,106280.0,1.55789724]
[1749406833416,0.56492426,106290.0,106280.0,1.3529124]
[1749406833622,0.56492426,106290.0,106280.0,1.55791302]
[1749406834224,0.56492426,106290.0,106280.0,0.94800656]
[1749406834418,0.56492426,106290.0,106280.0,1.52556504]
[1749406835417,0.56897304,106290.0,106280.0,1.3205324]
[1749406835622,0.56897304,106290.0,106280.0,0.9597324]
[1749406835825,0.56897304,106290.0,106280.0,1.3205324]
[1749406836223,0.56897304,106290.0,106280.0,1.52560741]
[1749406836426,0.56897304,106290.0,106280.0,1.3205324]
[1749406837527,0.56897304,106290.0,106280.0,1.61339502]
[1749406837730,0.56897304,106290.0,106280.0,1.25259502]
[1749406838023,0.56897304,106290.0,106280.0,1.61339502]
[1749406838327,0.56897304,106290.0,106280.0,1.61335502]
[1749406840424,0.56897304,106290.0,106280.0,1.25255502]
[1749406840625,0.56897304,106290.0,106280.0,1.61335502]
[1749406840829,0.56897304,106290.0,106280.0,1.3204924]
[1749406841138,0.56897304,106290.0,106280.0,1.52575415]
[1749406842241,0.56897304,106290.0,106280.0,1.55655415]
[1749406842842,0.56897304,106290.0,106280.0,1.19575415]
[1749406843137,0.56897304,106290.0,106280.0,1.55655415]
[1749406846343,0.56897304,106290.0,106280.0,1.3512924]
[1749406850851,0.56897304,106290.0,106280.0,1.3843924]
[1749406851239,0.53827304,106290.0,106280.0,1.67725502]
[1749406851438,0.53827304,106290.0,106280.0,1.45272159]
[1749406851648,0.53827304,106290.0,106280.0,1.88264159]
[1749406851851,0.53827304,106290.0,106280.0,1.58977897]
[1749406852649,1.4181161,106290.0,106280.0,0.66219148]
[1749406852851,1.4505161,106290.0,106280.0,0.85026588]
[1749406853353,1.4505161,106290.0,106280.0,0.6447444]
[1749406853648,1.4505161,106290.0,106280.0,0.85026818]
[1749406854048,1.4505161,106290.0,106280.0,0.6447444]
[1749406854250,1.4505161,106290.0,106280.0,0.82453086]
[1749406854748,1.4505161,106290.0,106280.0,1.03004117]
[1749406854951,1.4505161,106290.0,106280.0,0.82453086]
[1749406855641,1.4505161,106290.0,106280.0,0.8340554]
[1749406855950,1.4505161,106290.0,106280.0,0.82453086]
[1749406856245,1.27072964,106290.0,106280.0,0.82453086]
[1749406856450,1.4505161,106290.0,106280.0,0.82453086]
[1749406859453,1.0897161,106290.0,106280.0,0.88873086]
[1749406859654,1.0897161,106290.0,106280.0,0.92193086]
[1749406860255,1.0897161,106290.0,106280.0,1.21479348]
[1749406860451,1.0582161,106290.0,106280.0,1.21479348]
[1749406860756,0.9950161,106290.0,106280.0,1.21479348]
[1749406862352,0.21534964,106290.0,106280.0,1.84946659]
[1749406862652,0.02729184,106290.0,106280.0,1.55660397]
[1749406862857,0.12689184,106290.0,106280.0,1.55660397]
[1749406863154,0.02729184,106290.0,106280.0,1.84946659]
[1749406863352,0.31514864,106290.0,106280.0,1.84946659]
[1749406863961,0.31514864,106290.0,106280.0,1.55660397]
[1749406864149,0.31514864,106290.0,106280.0,1.93884233]
[1749406865159,0.31514864,106290.0,106280.0,1.84993146]
[1749406865860,0.31514864,106290.0,106280.0,1.55660397]
[1749406870858,0.31514864,106290.0,106280.0,1.84993146]
[1749406872353,0.31514864,106290.0,106280.0,1.55660397]
[1749406875764,0.31514864,106290.0,106280.0,1.49035854]
[1749406876060,0.4949351,106290.0,106280.0,1.84993146]
[1749406876362,0.4949351,106290.0,106280.0,1.55660397]
[1749406877964,0.4949351,106290.0,106280.0,1.19580397]
[1749406878158,0.4949351,106290.0,106280.0,1.55644397]
[1749406878864,0.4949351,106290.0,106280.0,1.37665751]
[1749406883454,0.4949351,106290.0,106280.0,1.84977146]
[1749406884166,0.4949351,106290.0,106280.0,1.55644397]
[1749406884767,0.4949351,106290.0,106280.0,1.84977146]
[1749406885561,0.4949351,106290.0,106280.0,1.55644397]
[1749406890564,0.4949351,106290.0,106280.0,1.84977146]
[1749406894068,0.4949351,106290.0,106280.0,1.55644397]
[1749406895774,0.4949351,106290.0,106280.0,1.93868233]
[1749406896466,0.31514864,106290.0,106280.0,1.93868233]
[1749406896670,0.4949351,106290.0,106280.0,1.93868233]
[1749406902178,0.4949351,106290.0,106280.0,2.2321874]
[1749406902479,0.4949351,106290.0,106280.0,2.05240094]
[1749406903080,0.4949351,106290.0,106280.0,1.67016258]
[1749406903372,0.4949351,106290.0,106280.0,1.48914904]
[1749406903579,0.4949351,106290.0,106280.0,1.84994904]
[1749406905081,0.4949351,106290.0,106280.0,1.67016258]
[1749406906484,0.4949351,106290.0,106280.0,1.30936258]
[1749406906779,0.4949351,106290.0,106280.0,1.67016258]
[1749406908481,0.31514864,106290.0,106280.0,1.84994904]
[1749406909576,0.21534864,106290.0,106280.0,1.84994904]
[1749406909879,0.31506864,106290.0,106280.0,1.55644397]
[1749406910481,0.31506864,106290.0,106280.0,1.93868233]
[1749406911577,0.21534864,106290.0,106280.0,1.93868233]
[1749406912080,0.31494864,106290.0,106280.0,1.93868233]
[1749406912482,0.31494864,106290.0,106280.0,1.55644397]
[1749406912985,0.31494864,106290.0,106280.0,1.84995073]
[1749406913284,0.21534864,106290.0,106280.0,1.84995073]
[1749406913584,0.31494864,106290.0,106280.0,1.84995073]
[1749406917085,0.31494864,106290.0,106280.0,1.87817073]
[1749406917587,0.21534864,106290.0,106280.0,1.87817073]
[1749406917887,0.29590558,106290.0,106280.0,1.87817073]
[1749406919182,0.29590558,106290.0,106280.0,1.58466397]
[1749406919883,0.29590558,106290.0,106280.0,1.96690233]
[1749406920895,0.29590558,106290.0,106280.0,1.58466397]
[1749406922997,0.29590558,106290.0,106280.0,1.96690233]
[1749406925496,0.29590558,106290.0,106280.0,2.26046923]
[1749406926096,0.29590558,106290.0,106280.0,1.87823087]
[1749406930501,0.29590558,106290.0,106280.0,1.96690233]
[1749406931100,0.47569204,106290.0,106280.0,1.78711587]
[1749406933500,0.47569204,106290.0,106280.0,1.04407751]
[1749406936205,0.97569204,106290.0,106280.0,0.97891761]
[1749406936389,1.06939204,106290.0,106280.0,0.97891761]
[1749406936593,1.06939204,106290.0,106280.0,1.27254136]
[1749406937595,1.06939204,106290.0,106280.0,1.23994136]
[1749406943605,1.06939204,106290.0,106280.0,0.94631761]
[1749406944305,0.56939204,106290.0,106280.0,0.94631761]
[1749406944509,1.06939204,106290.0,106280.0,0.94631761]
[1749406944708,1.06939204,106290.0,106280.0,1.01091761]
[1749406945006,1.06939204,106290.0,106280.0,1.39315597]
[1749406946009,1.06939204,106290.0,106280.0,1.42605597]
[1749406946303,1.06939204,106290.0,106280.0,1.04381761]
[1749406946905,0.56939204,106290.0,106280.0,1.04381761]
[1749406947308,1.06939204,106290.0,106280.0,1.04381761]
[1749406950009,0.56939204,106290.0,106280.0,1.04381761]
[1749406950211,1.06939204,106290.0,106280.0,1.04381761]
[1749406953012,0.56939204,106290.0,106280.0,1.04381761]
[1749406953211,1.06939204,106290.0,106280.0,1.04381761]
[1749406953408,1.06939204,106290.0,106280.0,1.42605597]
[1749406955113,1.00649204,106290.0,106280.0,1.42605597]
[1749406956712,1.36729204,106290.0,106280.0,0.70738034]
[1749406957217,1.42969204,106290.0,106280.0,0.70738034]
[1749406957419,1.42969204,106290.0,106280.0,0.67448034]
[1749406957615,1.42969204,106290.0,106280.0,0.29224198]
[1749406958017,1.42969204,106290.0,106280.0,0.44861648]
[1749406958417,1.42969204,106290.0,106280.0,0.2430445]